Workbook

Sheet Profit and loss statement
C2: VANARSDEL LTD.
C3: PROFIT & LOSS STATEMENT
B6: ="For the month that ended " & TEXT(DATE(YEAR(TODAY()),MONTH(TODAY())+1,0), "m/dd") -> For the month that ended 3/31
B8: Gross margin [L / J] | C8: =IFERROR(CostOfSales[[#Totals],[Current period]]/SalesRevenue[[#Totals],[Current period]], "") -> 56.85% | F8: Return on sales [T / J] | G8: =IFERROR(Taxes[[#Totals],[Current period]]/SalesRevenue[[#Totals],[Current period]], "") -> 24.46%
B10: Sales revenue
C12: Prior period | D12: Budget | E12: Current period | F12: Current period as % of sales | G12: % Change from prior period | H12: % Change from budget
B13: Product/Service 1 | C13: $6,511.00 | D13: $8,512.00 | E13: $9,121.00 | F13: =IF(TotalSales=0,"",E13/TotalSales) -> 22.7% | G13: =IF(E13=0,"",E13/C13-1) -> 40.1% | H13: =IF(E13=0,"",E13/D13-1) -> 7.2%
B14: Product/Service 2 | C14: $5,671.00 | D14: $6,879.00 | E14: $7,792.00 | F14: =IF(TotalSales=0,"",E14/TotalSales) -> 19.4% | G14: =IF(E14=0,"",E14/C14-1) -> 37.4% | H14: =IF(E14=0,"",E14/D14-1) -> 13.3%
B15: Product/Service 3 | C15: $7,482.00 | D15: $8,489.00 | E15: $8,893.00 | F15: =IF(TotalSales=0,"",E15/TotalSales) -> 22.2% | G15: 18.9% | H15: =IF(E15=0,"",E15/D15-1) -> 4.8%
B16: Product/Service 4 | C16: $12,432.00 | D16: $14,400.00 | E16: $14,324.00 | F16: =IF(TotalSales=0,"",E16/TotalSales) -> 35.7% | G16: 15.2% | H16: =IF(E16=0,"",E16/D16-1) -> -0.5%
B17: Total sales revenue [J] | C17: =SUM(C13:C16) -> $32,096.00 | D17: =SUM(D13:D16) -> $38,280.00 | E17: =SUM(E13:E16) -> $40,130.00 | G17: =IF(E17=0,"",E17/C17-1) -> 25.0% | H17: =IF(E17=0,"",E17/D17-1) -> 4.8%
B19: Cost of sales
C21: Prior period | D21: Budget | E21: Current period | F21: Current period as % of sales | G21: % Change from prior period | H21: % Change from budget
B22: Product/Service 1 | C22: $4,541.00 | D22: $5,412.00 | E22: $5,412.00 | F22: =IF(TotalSales=0,"",E22/TotalSales) -> 13.5% | G22: =IF(E22=0,"",E22/C22-1) -> 19.2% | H22: =IF(E22=0,"",E22/D22-1) -> 0.0%
B23: Product/Service 2 | C23: $2,365.00 | D23: $3,658.00 | E23: $3,400.00 | F23: =IF(TotalSales=0,"",E23/TotalSales) -> 8.5% | G23: =IF(E23=0,"",E23/C23-1) -> 43.8% | H23: =IF(E23=0,"",E23/D23-1) -> -7.1%
B24: Product/Service 3 | C24: $3,234.00 | D24: $3,345.00 | E24: $3,545.00 | F24: =IF(TotalSales=0,"",E24/TotalSales) -> 8.8% | G24: 9.6% | H24: 6.0%
B25: Product/Service 4 | C25: $4,567.00 | D25: $5,678.00 | E25: $4,958.00 | F25: =IF(TotalSales=0,"",E25/TotalSales) -> 12.4% | G25: 8.6% | H25: -12.7%
B26: Total cost of sales [K] | C26: =SUM(C22:C25) -> $14,707.00 | D26: =SUM(D22:D25) -> $18,093.00 | E26: =SUM(E22:E25) -> $17,315.00 | G26: 17.7% | H26: -4.3%
B27: Gross profit [L] = [J - K] | C27: =C17-C26 -> $17,389.00 | D27: =D17-D26 -> $20,187.00 | E27: =E17-E26 -> $22,815.00 | H27: =IF(E27=0,"",E27/D27-1) -> 13.0%
B29: Operating expenses
B31: Sales and marketing | C31: Prior period | D31: Budget | E31: Current period | F31: Current period as % of sales | G31: % Change from prior period | H31: % Change from budget
B32: Advertising | C32: $232.00 | D32: $324.00 | E32: $324.00 | F32: =IF(TotalSales=0,"",E32/TotalSales) -> 0.8% | G32: =IF(E32=0,"",E32/C32-1) -> 39.7% | H32: =IF(E32=0,"",E32/D32-1) -> 0.0%
B33: Direct marketing | C33: $321.00 | D33: $515.00 | E33: $415.00 | F33: =IF(TotalSales=0,"",E33/TotalSales) -> 1.0% | G33: =IF(E33=0,"",E33/C33-1) -> 29.3% | H33: =IF(E33=0,"",E33/D33-1) -> -19.4%
B34: Other expenses (specify) | C34: $556.00 | D34: $663.00 | E34: $760.00 | F34: =IF(TotalSales=0,"",E34/TotalSales) -> 1.9% | G34: =IF(E34=0,"",E34/C34-1) -> 36.7% | H34: =IF(E34=0,"",E34/D34-1) -> 14.6%
B35: Other expenses (specify) | C35: $230.00 | D35: $334.00 | E35: $234.00 | F35: =IF(TotalSales=0,"",E35/TotalSales) -> 0.6% | G35: =IF(E35=0,"",E35/C35-1) -> 1.7% | H35: =IF(E35=0,"",E35/D35-1) -> -29.9%
B36: Total Sales and marketing [M] | C36: =SUM(C32:C35) -> $1,339.00 | D36: =SUM(D32:D35) -> $1,836.00 | E36: =SUM(E32:E35) -> $1,733.00 | G36: =IF(E36=0,"",E36/C36-1) -> 29.4% | H36: =IF(E36=0,"",E36/D36-1) -> -5.6%
B38: Research and development | C38: Prior period | D38: Budget | E38: Current period | F38: Current period as % of sales | G38: % Change from prior period | H38: % Change from budget
B39: Technology licenses | C39: $1,645.00 | D39: $1,452.00 | E39: $1,400.00 | F39: =IF(TotalSales=0,"",E39/TotalSales) -> 3.5% | G39: =IF(E39=0,"",E39/C39-1) -> -14.9% | H39: =IF(E39=0,"",E39/D39-1) -> -3.6%
B40: Patents | C40: $1,024.00 | D40: $1,245.00 | E40: $945.00 | F40: =IF(TotalSales=0,"",E40/TotalSales) -> 2.4% | G40: =IF(E40=0,"",E40/C40-1) -> -7.7% | H40: =IF(E40=0,"",E40/D40-1) -> -24.1%
B41: Other expenses (specify) | C41: $196.00 | D41: $395.00 | E41: $295.00 | F41: =IF(TotalSales=0,"",E41/TotalSales) -> 0.7% | G41: =IF(E41=0,"",E41/C41-1) -> 50.5% | H41: =IF(E41=0,"",E41/D41-1) -> -25.3%
B42: Other expenses (specify) | C42: $123.00 | D42: $95.00 | E42: $120.00 | F42: =IF(TotalSales=0,"",E42/TotalSales) -> 0.3% | G42: =IF(E42=0,"",E42/C42-1) -> -2.4% | H42: =IF(E42=0,"",E42/D42-1) -> 26.3%
B43: Total Research and dev. [N] | C43: =SUM(C39:C42) -> $2,988.00 | D43: =SUM(D39:D42) -> $3,187.00 | E43: =SUM(E39:E42) -> $2,760.00 | G43: =IF(E43=0,"",E43/C43-1) -> -7.6% | H43: =IF(E43=0,"",E43/D43-1) -> -13.4%
B45: General and administrative | C45: Prior period | D45: Budget | E45: Current period | F45: Current period as % of sales | G45: % Change from prior period | H45: % Change from budget
B46: Wages and salaries | C46: $2,612.00 | D46: $2,850.00 | E46: $2,850.00 | F46: =IF(TotalSales=0,"",E46/TotalSales) -> 7.1% | G46: =IF(E46=0,"",E46/C46-1) -> 9.1% | H46: =IF(E46=0,"",E46/D46-1) -> 0.0%
B47: Outside services | C47: $150.00 | D47: $160.00 | E47: $155.00 | F47: =IF(TotalSales=0,"",E47/TotalSales) -> 0.4% | G47: 3.3% | H47: -3.1%
B48: Supplies | C48: $120.00 | D48: $105.00 | E48: $110.00 | F48: =IF(TotalSales=0,"",E48/TotalSales) -> 0.3% | G48: -8.3% | H48: 4.8%
B49: Meals and entertainment | C49: $250.00 | D49: $280.00 | E49: $295.00 | F49: =IF(TotalSales=0,"",E49/TotalSales) -> 0.7% | G49: 18.0% | H49: 5.4%
B50: Rent | C50: $1,505.00 | D50: $1,650.00 | E50: $1,650.00 | F50: =IF(TotalSales=0,"",E50/TotalSales) -> 4.1% | G50: 9.6% | H50: 0.0%
B51: Telephone | C51: $110.00 | D51: $110.00 | E51: $110.00 | F51: =IF(TotalSales=0,"",E51/TotalSales) -> 0.3% | G51: 0.0% | H51: 0.0%
B52: Utilities | C52: $110.00 | D52: $102.00 | E52: $106.00 | F52: =IF(TotalSales=0,"",E52/TotalSales) -> 0.3% | G52: -3.6% | H52: 3.9%
B53: Depreciation | C53: $55.00 | D53: $56.00 | E53: $56.00 | F53: =IF(TotalSales=0,"",E53/TotalSales) -> 0.1% | G53: 1.8% | H53: 0.0%
B54: Insurance | C54: $80.00 | D54: $45.00 | E54: $45.00 | F54: =IF(TotalSales=0,"",E54/TotalSales) -> 0.1% | G54: -43.8% | H54: 0.0%
B55: Repairs and maintenance | C55: $135.00 | D55: $150.00 | E55: $168.00 | F55: =IF(TotalSales=0,"",E55/TotalSales) -> 0.4% | G55: 24.4% | H55: 12.0%
B56: Other expenses (specify) | C56: $10.00 | D56: $10.00 | E56: $10.00 | F56: =IF(TotalSales=0,"",E56/TotalSales) -> 0.0% | G56: 0.0% | H56: 0.0%
B57: Other expenses (specify) | C57: $20.00 | D57: $20.00 | E57: $20.00 | F57: =IF(TotalSales=0,"",E57/TotalSales) -> 0.0% | G57: 0.0% | H57: 0.0%
B58: Total general and admin. [O] | C58: =SUM(C46:C57) -> $5,157.00 | D58: =SUM(D46:D57) -> $5,538.00 | E58: =SUM(E46:E57) -> $5,575.00 | G58: 8.1% | H58: 0.7%
B59: Total operating expenses [P] = [M + N + O] | C59: =C36+C43+C58 -> $9,484.00 | D59: =D36+D43+D58 -> $10,561.00 | E59: =E36+E43+E58 -> $10,068.00 | G59: 6.2% | H59: -4.7%
B60: Operations Income [Q] = [L - P] | C60: =C27-C59 -> $7,905.00 | D60: =D27-D59 -> $9,626.00 | E60: =E27-E59 -> $12,747.00 | G60: 61.3% | H60: 32.4%
B61: Other income [R] | C61: $550.00 | D61: $650.00 | E61: $650.00 | G61: =IF(E61=0,"",E61/C61-1) -> 18.2% | H61: =IF(E61=0,"",E61/D61-1) -> 0.0%
B63: Taxes
C65: Prior period | D65: Budget | E65: Current period | F65: Current period as % of sales | G65: % Change from prior period | H65: % Change from budget
B66: Income taxes | C66: $1,250.00 | D66: $2,560.00 | E66: $2,560.00 | F66: =IF(TotalSales=0,"",E66/TotalSales) -> 6.4% | G66: =IF(E66=0,"",E66/C66-1) -> 104.8% | H66: =IF(E66=0,"",E66/D66-1) -> 0.0%
B67: Payroll taxes | C67: $850.00 | D67: $950.00 | E67: $950.00 | F67: =IF(TotalSales=0,"",E67/TotalSales) -> 2.4% | G67: 11.8% | H67: 0.0%
B68: Real estate taxes | C68: $40.00 | D68: $40.00 | E68: $40.00 | F68: =IF(TotalSales=0,"",E68/TotalSales) -> 0.1% | G68: 0.0% | H68: 0.0%
B69: Other taxes (specify) | C69: $10.00 | D69: $10.00 | E69: $10.00 | F69: =IF(TotalSales=0,"",E69/TotalSales) -> 0.0% | G69: 0.0% | H69: 0.0%
B70: Other taxes (specify) | C70: $20.00 | D70: $20.00 | E70: $20.00 | F70: =IF(TotalSales=0,"",E70/TotalSales) -> 0.0% | G70: 0.0% | H70: 0.0%
B71: Total taxes [S] | C71: =SUM(C66:C70) -> $2,170.00 | D71: =SUM(D66:D70) -> $3,580.00 | E71: =SUM(E66:E70) -> $3,580.00 | G71: 65.0% | H71: 0.0%
B72: Net profit [T] = [Q + R - S] | C72: =C60+C61-C71 -> $6,285.00 | D72: =D60+D61-D71 -> $6,696.00 | E72: =E60+E61-E71 -> $9,817.00 | G72: =IF(C72=0,"",IF(C72=E72,"0.0%",IF(E72>C72,ABS((E72/C72)-1),IF(AND(E72<C72,C72<0),-((E72/C72)-1),(E72/C72)-1)))) -> 56.2% | H72: =IF(D72=0,"",IF(D72=E72,"0.0%",IF(E72>D72,ABS((E72/D72)-1),IF(AND(E72<D72,D72<0),-((E72/D72)-1),(E72/D72)-1)))) -> 46.6%
